Cogmind - Beta 17 @@@ ROGUE MODE // 2026.07.12 @ 22:58:12 Player: Marienkos Result: Destroyed by G-47 Trooper with Particle Gun Performance ------------- Evolutions (2) 1000 Regions Visited (3) 600 Robots Destroyed (31) 155 Value Destroyed (905) 905 Prototype IDs (3) 60 Alien Tech Used (0) 0 Bonus (0) 0 TOTAL SCORE: 2720 Bonus ------- None Cogmind --------- Core Integrity 0/550 Matter 26/300 Energy 90/100 System Corruption 1% Temperature Cool (55) Movement Core (100) Ox1 Location -8/Materials Parts ------- > --- POWER (1) -------- (None) > --- PROPULSION (3) --- (None) > --- UTILITY (5) ------ Terrain Scan Processor Utility Shielding Utility Shielding > --- WEAPON (2) ------- Advanced Beam Rifle Mini Grenade Launcher > --- INVENTORY (5) ---- (None) Peak State ------------ > --- POWER ------------ Improved Ion Engine > --- PROPULSION ------- Airjet Airjet Airjet > --- UTILITY ---------- Terrain Scan Processor ECM Suite Utility Shielding Utility Shielding > --- WEAPON ----------- Mini Grenade Launcher > --- INVENTORY -------- Light Ion Engine Wheel Wheel Wheel [Rating: 18] Favorites ----------- Power Light Ion Engine Engine Light Ion Engine Power Core Light Nuclear Core Propulsion Wheel Wheel Wheel Hover Unit Hover Unit Utility Utility Shielding Device ECM Suite Processor Terrain Scan Processor Protection Utility Shielding Weapon Improved Assault Rifle Energy Gun EM Pulse Gun Ballistic Gun Improved Assault Rifle Launcher Mini Grenade Launcher Build | -11 -10 -9 -8 ------- Run | Yrd Mat Mat Mat Slots Evolved 4 | . . 2 2 Power . | . . . . Propulsion 1 | . . 1 . Utility 3 | . . 1 2 Weapon . | . . . . Parts Attached 34 | 5 9 14 6 Power 8 | 1 3 3 1 Engine 7 | 1 3 3 . Core 1 | . . . 1 Reactor . | . . . . Propulsion 12 | 2 2 8 . Treads . | . . . . Leg . | . . . . Wheel 4 | 2 . 2 . Hover 8 | . 2 6 . Flight . | . . . . Utility 4 | . 2 1 1 Device 1 | . . 1 . Storage . | . . . . Processor 1 | . . . 1 Hackware . | . . . . Protection 2 | . 2 . . Artifact . | . . . . Weapon 10 | 2 2 2 4 Energy Gun 6 | 2 1 . 3 Energy Cannon . | . . . . Ballistic Gun 1 | . . 1 . Ballistic Cannon . | . . . . Launcher 3 | . 1 1 1 Special Weapon . | . . . . Impact Weapon . | . . . . Slashing Weapon . | . . . . Piercing Weapon . | . . . . Special Melee Weapon . | . . . . Unidentified Prototypes 3 | . . 2 1 Parts Lost 21 | . 1 7 13 Power 4 | . . 1 3 Propulsion 10 | . . 4 6 Utility 1 | . . . 1 Weapon 6 | . 1 2 3 Highest Loss Streak 6 | . 1 3 6 To Critical Strikes . | . . . . Average Backups 3 | . 3 4 2 Power 1 | . 1 1 . Propulsion . | . 1 . 1 Utility . | . . 1 . Weapon . | . . . . Tool/Special . | . . . . Unused Backups 1 | . . 1 . Power . | . . . . Propulsion . | . . . . Utility 1 | . . 1 . Weapon . | . . . . Tool/Special . | . . . . Average Slot Usage (%) 87 | . 87 93 68 Engine 10 | . 14 10 5 Wheel 11 | . 8 13 9 Hover 16 | . 18 16 9 Device 7 | . . 10 9 Processor 1 | . . . 9 Protection 19 | . 16 22 18 Energy Gun 6 | . 21 . 3 Ballistic Gun 5 | . . 9 . Launcher 8 | . 6 9 5 Peak Build Rating 18 | 5 8 16 18 Average Rating 10 | 3 6 12 11 On Entrance 7 | . 5 8 16 Avg Prop Armor Cover (%) 6 | . . 6 13 Naked Turns . | . . . . Heaviest Build 16 | 6 13 16 12 Greatest Support 30 | 26 26 30 30 Greatest Overweight (x) 5 | 1 1 5 3 Average Overweight (x) . | . . . . Largest Inventory Capacity 5 | 5 5 5 5 Average Capacity 5 | 5 5 5 5 Most Carried 5 | 1 5 5 5 Average Carried 3 | . 3 4 2 Final Capacity 5 | 5 5 5 5 Final Carried 5 | 1 5 5 . Class Distribution -------------------- 94% | Mutant 5% | Scavenger-Mutant Dominant Class ---------------- Mutant | -10/Materials Mutant | -9/Materials Mutant | -8/Materials Resources | -11 -10 -9 -8 ----------- Run | Yrd Mat Mat Mat Matter Collected 662 | 235 88 234 105 Remotely . | . . . . Salvage Created 735 | . 187 299 249 Parts 59 | . 16 30 13 Haulers Intercepted 2 | . . . 2 Recyclers Shooed . | . . . . Parts Field Recycled . | . . . . Retrieved Matter . | . . . . Parts Self-Destructed . | . . . . Prevented . | . . . . Parts Restored . | . . . . Kills | -11 -10 -9 -8 ------- Run | Yrd Mat Mat Mat Combat Hostiles Destroyed 20 | . 7 8 5 Guns 6 | . 2 3 1 AOE 14 | . 5 5 4 Classes Destroyed 8 | . 5 2 1 Worker 1 | . 1 . . Builder 4 | . . 4 . Hauler 2 | . . . 2 Operator 1 | . 1 . . Watcher 3 | . 2 1 . Swarmer 2 | . 2 . . Grunt 15 | . 5 5 5 Sentry 3 | . . 3 . Best Kill Streak 6 | . 6 4 3 Combat Bots Only 5 | . 5 3 2 Max Kills in Single Turn 3 | . 2 3 2 Gunslinging . | . . . . Exploded 2 | . 2 1 1 Melee . | . . . . Uniques/NPCs Destroyed . | . . . . Combat | -11 -10 -9 -8 -------- Run | Yrd Mat Mat Mat Hostile Shots Fired 145 | . 35 34 76 Missed 50 | . 20 12 18 Hits 95 | . 15 22 58 Melee 2 | . . . 2 Projectile 93 | . 15 22 56 Critical Strikes 4 | . . 3 1 Damage Taken 1945 | . 192 576 1177 Core 788 | . 38 192 558 Absorbed by Shields . | . . . . Redirected to Shielding 12 | . . . 12 Core Remaining (%) 78 | 100 84 52 . Volleys Fired 64 | . 16 26 22 Largest 2 | . 2 2 2 Hottest 95 | . 95 53 91 Shots Fired 93 | . 30 39 24 Gun 57 | . 17 25 15 Cannon . | . . . . Launcher 36 | . 13 14 9 Special . | . . . . Kinetic 25 | . . 25 . Thermal 27 | . 12 . 15 Explosive 36 | . 13 14 9 Electromagnetic 5 | . 5 . . Robot Hit Streak 20 | . 12 20 6 Robot Miss Streak 4 | . 4 3 2 Penetration Max . | . . . . Secondary Targets . | . . . . Shots Hit Robots 65 | . 17 28 20 Core Hits 56 | . 15 25 16 Critical Kills . | . . . . Critical Parts Destroyed . | . . . . Critical Strikes . | . . . . Melee Attacks . | . . . . Impact . | . . . . Slashing . | . . . . Piercing . | . . . . Sneak Attacks . | . . . . Combat Hostiles . | . . . . Follow-up Attacks . | . . . . Damage Inflicted 2343 | . 654 828 861 Guns 641 | . 145 293 203 Cannons . | . . . . Explosions 1691 | . 509 535 647 Melee . | . . . . Ramming 11 | . . . 11 Kinetic 293 | . . 293 . Thermal 302 | . 99 . 203 Explosive 1691 | . 509 535 647 Electromagnetic 46 | . 46 . . Impact . | . . . . Slashing . | . . . . Piercing . | . . . . Highest Corruption 1 | . . . 1 Average Corruption 1 | . . . 1 Corruption Purged . | . . . . Corruption Blocked . | . . . . Effects 1 | . . . 1 Matter Fused 1 | . . . 1 Overload Shots . | . . . . Overflow Damage 69 | . . 32 37 Projectiles . | . . . . Explosions 69 | . . 32 37 Melee . | . . . . Knockbacks . | . . . . Impact . | . . . . Kinetic . | . . . . Secondary . | . . . . Self-Inflicted Damage 521 | . 31 264 226 Shots 18 | . 1 9 8 Rammed 6 | . . . 6 Targets Rammed 6 | . . . 6 Kicked . | . . . . Crushed . | . . . . Highest Temperature 183 | . 125 21 183 Average Temperature 52 | . 53 11 65 Received Heat Transfer 753 | . 72 159 522 Siege Activations . | . . . . Martial Activations . | . . . . Shielding Activations . | . . . . Robots Disrupted . | . . . . Combat Hostiles . | . . . . Robots Corrupted . | . . . . Combat Hostiles . | . . . . Parts Fried . | . . . . Impact Corruptions . | . . . . Robots Melted . | . . . . Combat Hostiles . | . . . . Parts Melted . | . . . . Heat Transferred 691 | . 247 . 444 Parts Sabotaged . | . . . . Parts Stolen . | . . . . Parts Stripped . | . . . . Power Chain Reactions . | . . . . Alert | -11 -10 -9 -8 ------- Run | Yrd Mat Mat Mat Maximum Alert Level 1 | . 1 . . Low Security (%) 94 | 100 80 100 100 Level 1 5 | . 19 . . Level 2 . | . . . . Level 3 . | . . . . Level 4 . | . . . . Level 5 . | . . . . High Security . | . . . . Max Security . | . . . . Peak Influence 252 | . 252 186 120 Initial 105 | . . 105 67 Average 73 | . 90 73 62 Influence Increases 853 | . 332 365 156 Destroy 0b10 Robot/C 400 | . 140 160 100 Destroy 0b10 Robot/NC 55 | . 20 25 10 Destroy Leader 110 | . 44 52 14 Successful Hack 6 | . . 6 . Disable Machine 90 | . 45 30 15 Destroy Structure 162 | . 68 77 17 Partial Spotted 15 | . . 15 . Lose Combat Pursuer 15 | . 15 . . Influence Decreases 831 | . 80 457 294 Entered New Map 240 | . . 147 93 Time Decay 381 | . 70 240 71 Lost Part 210 | . 10 70 130 Squads Dispatched 4 | . 2 1 1 Investigation 2 | . 1 1 . Extermination . | . . . . Reinforcement 2 | . 1 . 1 Assault . | . . . . Garrison . | . . . . Intercept . | . . . . Searches Triggered . | . . . . Construction Impeded . | . . . . Haulers Reinforced . | . . . . Active Scanning Responses . | . . . . Cargo Convoy Interrupts . | . . . . Stealth | -11 -10 -9 -8 --------- Run | Yrd Mat Mat Mat Distress Signals 1 | . 1 . . Communications Jammed . | . . . . Distress Signals . | . . . . Times Spotted 32 | . 14 9 9 Peak Tracking Total 6 | . 5 2 6 Tactical Retreats 1 | . 1 . . Traps | -11 -10 -9 -8 ------- Run | Yrd Mat Mat Mat Traps Triggered 1 | . . 1 . Indirectly . | . . . . Trap Hack Attempts . | . . . . Triggered . | . . . . Disarmed . | . . . . Reprogrammed . | . . . . Reused . | . . . . Traps Extracted . | . . . . Installed . | . . . . Triggered . | . . . . Machines | -11 -10 -9 -8 ---------- Run | Yrd Mat Mat Mat Machines Disabled 6 | . 3 2 1 Max in Single Turn 1 | . 1 1 1 Machines Repaired . | . . . . Machines Dismantled . | . . . . Machines Sabotaged . | . . . . Overloaded Fab Kills . | . . . . Hacking | -11 -10 -9 -8 --------- Run | Yrd Mat Mat Mat Machines Accessed 7 | . 2 5 . Terminals 7 | . 2 5 . Fabricators . | . . . . Repair Stations . | . . . . Recycling Units . | . . . . Scanalyzers . | . . . . Garrison Access . | . . . . Total Hacks 16 | . 5 11 . Successful 7 | . 2 5 . Failed 9 | . 3 6 . Catastrophic 4 | . 2 2 . Database Lockouts . | . . . . Manual 12 | . 6 6 . Terminals 16 | . 5 11 . Fabricators . | . . . . Repair Stations . | . . . . Recycling Units . | . . . . Scanalyzers . | . . . . Garrison Access . | . . . . Terminal Hacks 7 | . 2 5 . Record 1 | . . 1 . Branch Access Points 1 | . . 1 . Emergency Access Points 2 | . 1 1 . Alert Level 1 | . . 1 . Locate Traps 1 | . 1 . . Zone Layout 1 | . . 1 . Fabricator Hacks . | . . . . Repair Station Hacks . | . . . . Recycling Unit Hacks . | . . . . Scanalyzer . | . . . . Garrison Access Hacks . | . . . . Unauthorized Hacks . | . . . . Terminals . | . . . . Fabricators . | . . . . Repair Stations . | . . . . Recycling Units . | . . . . Scanalyzers . | . . . . Garrison Access . | . . . . Data Cores Recovered . | . . . . Used . | . . . . Hacking Detections 5 | . 2 3 . Full Trace Events 3 | . 2 1 . Feedback Events . | . . . . Feedback Blocked . | . . . . Robot Schematics Acquired . | . . . . Robots Built . | . . . . Authchips . | . . . . Time . | . . . . Total Robot Build Rating . | . . . . Part Schematics Acquired . | . . . . Parts Built . | . . . . Authchips . | . . . . Time . | . . . . Total Part Build Rating . | . . . . Part Studies Acquired . | . . . . Parts Repaired . | . . . . Time . | . . . . Parts Recycled . | . . . . Recycled Matter . | . . . . Retrieved Matter . | . . . . Retrieved Components . | . . . . Parts Scanalyzed . | . . . . Part Schematics Acquired . | . . . . Parts Damaged . | . . . . Bothacking | -11 -10 -9 -8 ------------ Run | Yrd Mat Mat Mat Used RIF Installer . | . . . . Robots Hacked . | . . . . Non-combat . | . . . . Combat . | . . . . Robot Hacks Applied . | . . . . Relay Couplers Released . | . . . . Fabnet Peak Effective % . | . . . . Robots Rewired . | . . . . Allies Hacked . | . . . . Hacks Repelled . | . . . . Allies | -11 -10 -9 -8 -------- Run | Yrd Mat Mat Mat Total Allies . | . . . . Largest Group . | . . . . Highest-Rated Group . | . . . . Highest-Rated Ally . | . . . . Total Orders . | . . . . Ally Attacks . | . . . . Total Damage . | . . . . Kills . | . . . . Allies Corrupted . | . . . . Allies Melted . | . . . . Intel | -11 -10 -9 -8 ------- Run | Yrd Mat Mat Mat Active Infowar (turns) 694 | . . 639 55 ECM 694 | . . 639 55 Robot Analysis Total . | . . . . Derelict Logs Recovered . | . . . . Drone Launches . | . . . . Drone Recoveries . | . . . . Exploration | -11 -10 -9 -8 ------------- Run | Yrd Mat Mat Mat Turns Passed 1172 | 44 319 640 169 Spaces Moved 1223 | 43 384 654 142 Core 26 | 11 1 10 4 Treads . | . . . . Legs . | . . . . Wheels 401 | 32 104 190 75 Hover 796 | . 279 454 63 Flight . | . . . . Fastest Speed 50 | 50 56 52 52 Average Speed 76 | 83 65 82 71 Slowest Speed 300 | 100 116 300 200 Overloaded Moves . | . . . . Propulsion Burnouts . | . . . . Robots Hopped . | . . . . Potential Cave-ins . | . . . . Cave-ins Triggered . | . . . . Exploration Rate (%) 27 | 4 57 32 16 Regions Visited 3 Branch Regions . Pre-discovered Areas . | . . . . Known Exits Taken . | . . . . Unknown Exits Taken 3 | 1 1 1 . Scrap Searched . | . . . . Spaces Dug . | . . . . Terrain Destroyed 198 | . 63 96 39 Melee . | . . . . Projectile . | . . . . AOE 198 | . 63 96 39 Terrain Rammed . | . . . . Walls Destroyed . | . . . . Machines Disabled . | . . . . Actions | -11 -10 -9 -8 --------- Run | Yrd Mat Mat Mat Total 1362 | 48 418 711 185 Wait 6 | . 2 . 4 Move 1220 | 42 383 653 142 Hop . | . . . . Pick Up 8 | 1 3 3 1 Fast Attach 24 | 5 5 10 4 Attach 10 | . . 4 6 Detach 7 | . 2 5 . Swap 8 | . 4 4 . Drop 9 | . 3 6 . Fire 64 | . 16 26 22 Melee . | . . . . Ram 6 | . . . 6 Kick . | . . . . Crush . | . . . . Escape Stasis . | . . . . Rewire . | . . . . Trap . | . . . . Miscellaneous . | . . . . Route ------- -11/Scrapyard -10/Materials (discovered 3 exits: *Mat x2 / [*Min]) -9/Materials (discovered 3 exits: [*Mat] / Min x2) -8/Materials History --------- Turn | Location | Event 26 | -11/Scrapyard | Discovered new exit (range 16) 45 | -11/Scrapyard | Entered Materials 177 | -10/Materials | Discovered new exit (range 16) 252 | -10/Materials | Discovered new exit (range 12) 307 | -10/Materials | Build established: Mutant 309 | -10/Materials | Discovered new exit (range 8) 364 | -10/Materials | Entered another Materials area 364 | -9/Materials | Evolved 2 slots: Propulsion x1, Utility x1 458 | -9/Materials | Identified exit to Mines 513 | -9/Materials | Lost 3 parts (2n1w) 999 | -9/Materials | Discovered new exit (range 9) 1004 | -9/Materials | Entered another Materials area 1004 | -8/Materials | Evolved 2 slots: Utility x2 1087 | -8/Materials | Core integrity fell below 50% 1104 | -8/Materials | Core integrity fell below 20% 1123 | -8/Materials | Lost 6 parts (1p2n3w) 1173 | -8/Materials | Destroyed by G-47 Trooper with Particle Gun Last Messages --------------- Airjet destroyed. Acquired Particle Gun. Lgt. Nuclear Core destroyed. Critical hit (Burn: +37). Mni. Grenade Launcher destroyed. Particle Gun destroyed. G-47 Trooper heat damages Imp. Heat Sink. G-47 Trooper overheating. System corrupted: Matter fused (-8). Acquired Adv. Beam Rifle. Wheel destroyed. Acquired Mni. Grenade Launcher. Destroyed Broken Aluminum Leg. G-47 Trooper destroyed. Lgt. Ion Engine destroyed. Broken ECM Suite destroyed. G-47 Trooper destroyed. A-02 Transporter destroyed. Wheel destroyed. Destroyed Wheel. Map ----- +----------------------------------------------------+ | ???????????????????????????/ ??????????????????? | | ???????????????????????????# ??????????????????? | | ???????????????????????????# #?????????????????? | | ???????????????????????????# #?????????????????? | | ???????????????????????????# #?????????????????? | | ???????????????????????????# #?????????????????? | | ???????????????????????????# #?????????????????? | | ???????????????????????????+ #?????????????????? | | ???????????????????????????# #?????????????????? | | ???????????????????????????# #?????????????????? | | ???????????????????????????# ###############???? | | ???????????????????????????# # # =#???? | | ???????????????????????????# # # """ #???? | | ???????????????????????????# # # """ #???? | | ???????????????????????????# + # """ #???? | | ???????????????????????????# # # #???? | | ??????????????????########## # # / #???? | | ??????????????????# # ######+##+#####???? | | ??????????????????#""" ! # g #????# #???????? | | ??????????????????#""" #g #????# #???????? | | ??????????????????#""" #????# #??????#? | | ??????????????????# ==* ###### #????] #? | | ??????????????????#""" %[%== #?? #? | | ??????????????????#""" ==| # #? | | ??????????????????#""" l ! + !#? | | ??????????????????# @ # #####+##+########? | | ??????????????????########## ## #??????? | | ???????????????????????????# ## #??????? | | ???????????????????????????# ## #??????? | | ???????????????????????????# ## #??????? | | ???????????????????????????# ## #??????? | | ???????????????????????????? ## #??????? | | ???????????????????????????? ## #??????? | | ???????????????????????????# ## #??????? | | ??????????????????????????## ## #??????? | | ??????????????????????????# #######/###??????? | | ??????????????????????????# #??????? | | ??????????????????????????+ +??????? | | ??????????????????????????# """ #??????? | | ?????????????????????????????? """ #??????? | | ???????????????????????????? ? """ #??????? | | ???????????????????????????# """ #??????? | | ???????????????????????????# #??????? | | ???????????????????????????# #??????? | | ???????????????????????????# """ """ ##??????? | | ???????????????????????????# """ """ #???????? | | ???????????????????????????# """ """ #???????? | | ???????????????????????????+ """ """ =#???????? | | ???????????????????????????# #???????? | | ???????????????????????????# #???????? | +----------------------------------------------------+ Best States ------------- Heat Dissipation 31 Energy Generation 14 Energy Capacity 280 Matter Stores 300 Matter Capacity 300 Sight Range 16 Terrain Scan Density 85 ECM Strength 1 Utility Shielding 33 Evasion (%) 54 Item Schematics ----------------- None Robot Schematics ------------------ None Fabricated ------------ Nothing Repaired ---------- Nothing Studied --------- None Alien Tech Used ----------------- None Achievements -------------- Ghost 'Em Challenges ------------ None Game ------ Seed CloakFocalBiocell Manual? 0 Play Time 00:36:20 Cumulative 8.7 hours Start 2026.07.12 @ 22:24:03 End 2026.07.12 @ 22:58:12 Sessions 1 Manual Loads 0 Difficulty Rogue Special Mode None Game No. 20 Rogue 20 Adventurer 0 Explorer 0 Win Type - Total 0 Types 0/0/0/0/0/0/0/0/0/0 Lore% 14 Gallery% 10 Achievement% 11 Wizard Run 0 Options --------- Layout 1 ASCII 0 Keyboard 1 Movement Arrows Keybinds 0 Fullscreen 1 Font 36/SmallcapsGlow++ Map View 53x45 Zoom Use 0% Tactical HUD 0 Map Filters NONE Filters NONE Steam 1 RUN: 5f6d0709-c396-4451-be35-22cdd0faa689